[Event "27th CRO-chT Women 2018"]
[Site "Biograd"]
[Date "2018.09.10"]
[Round "4.10"]
[White "Stadler, Brigita"]
[Black "Medic, Mirjana"]
[Result "0-1"]
[ECO "B22"]
[WhiteElo "2067"]
[BlackElo "2167"]
[Annotator "NA"]
[PlyCount "66"]
[EventDate "2018.09.08"]
[EventType "team-tourn"]
[EventCountry "CRO"]
[SourceTitle "playchess.com"]
[Source "ChessBase"]
[SourceQuality "1"]
[TimeControl "40/5400+30:1800+30"]

1. e4 {[%emt 0:00:30]} e6 {[%emt 0:00:30]} 2. d4 {[%emt 0:00:00]} d5 {[%emt 0:00:30]} 3. exd5 {[%emt 0:00:00]} exd5 {[%emt 0:00:00]} 4. Nf3 {[%emt 0:00:00]} Nf6 {[%emt 0:01:00]} 5. Bd3 {[%emt 0:03:00]} c5 {[%emt 0:01:30]} 6. c3 {[%emt 0:01:30]} c4 {[%emt 0:01:30]} 7. Be2 {[%emt 0:00:30]} Nc6 {[%emt 0:01:30]} 8. b3 {[%emt 0:00:30]} cxb3 {[%emt 0:00:30]} 9. axb3 {[%emt 0:00:30]} Be7 {[%emt 0:01:30]} 10. O-O {[%emt 0:00:30]} O-O {[%emt 0:00:00]} 11. Nbd2 {[%emt 0:06:30]} Qc7 {[%emt 0:05:00]} 12. Re1 {[%emt 0:02:30]} Re8 {[%emt 0:02:30]} 13. Bd3 {[%emt 0:00:30]} Bg4 {[%emt 0:01:30]} 14. Bb2 {[%emt 0:04:30]} Bd6 {[%emt 0:12:30]} 15. Qc2 {[%emt 0:04:30]} a6 {[%emt 0:06:30]} 16. h3 {[%emt 0:03:30]} Bd7 {[%emt 0:05:30]} 17. Nf1 {[%emt 0:00:30]} Rac8 {[%emt 0:02:30]} 18. Ne3 {[%emt 0:01:30]} Bf4 {[%emt 0:00:30]} 19. Bf5 {[%emt 0:10:30]} Bxe3 {[%emt 0:10:30]} 20. Rxe3 {[%emt 0:00:30]} Rxe3 {[%emt 0:00:00]} 21. fxe3 {[%emt 0:01:30]} Bxf5 {[%emt 0:00:00]} 22. Qxf5 {[%emt 0:00:30]} Re8 {[%emt 0:00:30]} 23. Re1 {[%emt 0:02:30]} Na5 {[%emt 0:02:30]} 24. Nd2 {[%emt 0:13:30]} h6 {[%emt 0:11:30]} 25. Re2 {[%emt 0:05:30]} Qb6 {[%emt 0:01:30]} 26. b4 {[%emt 0:03:30]} Qb5 {[%emt 0:00:30]} 27. Qf3 {[%emt 0:06:30]} Nc4 {[%emt 0:00:30]} 28. Bc1 {[%emt 0:02:30]} Re6 {[%emt 0:03:30]} 29. Nb3 {[%emt 0:00:30]} b6 {[%emt 0:00:30]} 30. Rf2 {[%emt 0:00:30]} Qa4 {[%emt 0:04:30]} 31. Nd2 {[%emt 0:02:30]} Rxe3 {[%emt 0:04:49]} 32. Qf5 {[%emt 0:00:30]} Rxc3 {[%emt 0:02:32]} 33. Qc8+ {[%emt 0:03:30]} Qe8 {[%emt 0:00:13]} 0-1

[Event "27th CRO-chT Women 2018"]
[Site "Biograd"]
[Date "2018.09.12"]
[Round "5.1"]
[White "Janzelj, Lara"]
[Black "Ivekovic, Ana"]
[Result "1-0"]
[ECO "D00"]
[WhiteElo "2254"]
[BlackElo "2118"]
[Annotator "ChessBase"]
[PlyCount "157"]
[EventDate "2018.09.08"]
[EventType "team-tourn"]
[EventCountry "CRO"]
[SourceTitle "playchess.com"]
[Source "ChessBase"]
[SourceQuality "1"]
[TimeControl "40/5400+30:1800+30"]

1. d4 {[%emt 0:00:30]} Nf6 {[%emt 0:00:30]} 2. Bg5 {[%emt 0:00:00]} d5 {[%emt 0:01:30]} 3. Nc3 {[%emt 0:03:00]} Bf5 {[%emt 0:04:30]} 4. f3 {[%emt 0:02:30]} h6 {[%emt 0:03:30]} 5. Bh4 {[%emt 0:01:30]} c6 {[%emt 0:04:30]} 6. Qd2 {[%emt 0:04:30]} Nbd7 {[%emt 0:02:30]} 7. e3 {[%emt 0:01:30]} b5 {[%emt 0:04:30]} 8. g4 {[%emt 0:12:30]} Bh7 {[%emt 0:02:30]} 9. Bg3 {[%emt 0:00:00]} e6 {[%emt 0:07:30]} 10. Nge2 {[%emt 0:06:00]} Nb6 {[%emt 0:03:30]} 11. b3 {[%emt 0:03:30]} b4 {[%emt 0:08:30]} 12. Nd1 {[%emt 0:03:30]} Be7 {[%emt 0:08:30]} 13. Nf2 {[%emt 0:08:30]} Nfd7 {[%emt 0:03:30]} 14. Nf4 {[%emt 0:01:30]} a5 {[%emt 0:01:30]} 15. N2d3 {[%emt 0:10:30]} O-O {[%emt 0:02:30]} 16. h4 {[%emt 0:02:30]} c5 {[%emt 0:03:30]} 17. g5 {[%emt 0:08:30]} cxd4 {[%emt 0:04:30]} 18. exd4 {[%emt 0:00:30]} Rc8 {[%emt 0:04:30]} 19. gxh6 {[%emt 0:06:30]} Bf6 {[%emt 0:02:30]} 20. hxg7 {[%emt 0:01:30]} Re8 {[%emt 0:00:30]} 21. Ne2 {[%emt 0:00:30]} Kxg7 {[%emt 0:13:54]} 22. Rc1 {[%emt 0:02:01]} Rh8 {[%emt 0:03:58]} 23. Ndf4 {[%emt 0:05:28]} Bf5 {[%emt 0:00:40]} 24. h5 {[%emt 0:03:18]} e5 {[%emt 0:02:20]} 25. h6+ {[%emt 0:01:30]} Kh7 {[%emt 0:01:47]} 26. Bh3 {[%emt 0:01:52]} Bxh3 {[%emt 0:01:12]} 27. Nxh3 {[%emt 0:00:23]} Rg8 {[%emt 0:01:11]} 28. Qd3+ {[%emt 0:02:15]} Kh8 {[%emt 0:00:08]} 29. Kf2 {[%emt 0:02:28]} exd4 {[%emt 0:01:18]} 30. Nef4 {[%emt 0:00:59]} Ne5 {[%emt 0:01:11]} 31. Qf5 {[%emt 0:01:58]} Rc3 {[%emt 0:00:30]} 32. Nd3 {[%emt 0:03:12]} Nxd3+ {[%emt 0:00:43]} 33. cxd3 {[%emt 0:00:01]} Bh4 {[%emt 0:01:16]} 34. Qe5+ {[%emt 0:00:31]} Qf6 {[%emt 0:00:30]} 35. Qxf6+ {[%emt 0:00:05]} Bxf6 {[%emt 0:00:05]} 36. Bf4 {[%emt 0:01:29]} Bh4+ {[%emt 0:00:18]} 37. Ke2 {[%emt 0:00:37]} Rg2+ {[%emt 0:00:56]} 38. Kf1 {[%emt 0:00:12]} Rxa2 {[%emt 0:00:44]} 39. Rd1 {[%emt 0:01:05]} Bf6 {[%emt 0:00:45]} 40. Re1 {[%emt 0:00:00]} Rxd3 {[%emt 0:00:00]} 41. h7 {[%emt 0:07:36]} Rxf3+ {[%emt 0:05:04]} 42. Kg1 {[%emt 0:00:00]} Re3 {[%emt 0:09:33]} 43. Bxe3 {[%emt 0:00:00]} dxe3 {[%emt 0:00:02]} 44. Nf4 {[%emt 0:03:30]} d4 {[%emt 0:02:41]} 45. Rc1 {[%emt 0:02:59]} d3 {[%emt 0:09:56]} 46. Nxd3 {[%emt 0:00:15]} Bd4 {[%emt 0:00:56]} 47. Rh4 {[%emt 0:05:51]} Bc3 {[%emt 0:00:56]} 48. Ne1 {[%emt 0:02:03]} Rd2 {[%emt 0:05:35]} 49. Nf3 {[%emt 0:09:05]} Rd7 {[%emt 0:00:09]} 50. Kf1 {[%emt 0:00:21]} f6 {[%emt 0:00:31]} 51. Ke2 {[%emt 0:01:45]} Rxh7 {[%emt 0:00:30]} 52. Re4 {[%emt 0:00:29]} Nd5 {[%emt 0:00:55]} 53. Rg1 {[%emt 0:02:26]} Rg7 {[%emt 0:00:18]} 54. Rh1+ {[%emt 0:00:50]} Kg8 {[%emt 0:00:01]} 55. Nh4 {[%emt 0:00:37]} Bd2 {[%emt 0:00:32]} 56. Kf3 {[%emt 0:00:18]} Re7 {[%emt 0:00:42]} 57. Rg4+ {[%emt 0:00:24]} Kf7 {[%emt 0:00:41]} 58. Nf5 {[%emt 0:00:21]} Re5 {[%emt 0:00:14]} 59. Nd4 {[%emt 0:00:45]} Rg5 {[%emt 0:00:37]} 60. Rgh4 {[%emt 0:00:25]} Bc3 {[%emt 0:00:42]} 61. Rh7+ {[%emt 0:00:45]} Rg7 {[%emt 0:00:01]} 62. Nc6 {[%emt 0:00:32]} Rxh7 {[%emt 0:00:10]} 63. Rxh7+ {[%emt 0:00:02]} Kg6 {[%emt 0:00:02]} 64. Rd7 {[%emt 0:00:20]} Nb6 {[%emt 0:01:10]} 65. Rb7 {[%emt 0:01:08]} Nc8 {[%emt 0:01:20]} 66. Kxe3 {[%emt 0:00:38]} Nd6 {[%emt 0:00:18]} 67. Rd7 {[%emt 0:00:13]} Nf5+ {[%emt 0:00:47]} 68. Kf4 {[%emt 0:00:12]} Bb2 {[%emt 0:00:37]} 69. Nxa5 {[%emt 0:00:17]} Nd4 {[%emt 0:00:24]} 70. Ke4 {[%emt 0:00:26]} f5+ {[%emt 0:00:31]} 71. Kd3 {[%emt 0:00:07]} Nf3 {[%emt 0:00:18]} 72. Rb7 {[%emt 0:00:40]} Bc3 {[%emt 0:00:30]} 73. Nc6 {[%emt 0:00:12]} Ne5+ {[%emt 0:00:42]} 74. Nxe5+ {[%emt 0:00:05]} Bxe5 {[%emt 0:00:00]} 75. Rxb4 {[%emt 0:00:04]} Kf6 {[%emt 0:00:40]} 76. Rc4 {[%emt 0:00:24]} Kg5 {[%emt 0:00:28]} 77. Ke3 {[%emt 0:00:18]} f4+ {[%emt 0:00:39]} 78. Kf3 {[%emt 0:00:05]} Kf5 {[%emt 0:00:13]} 79. b4 {[%emt 0:00:07]} 1-0

[Event "27th CRO-chT Women 2018"]
[Site "Biograd"]
[Date "2018.09.12"]
[Round "5.2"]
[White "Spiranec, Noemi"]
[Black "Kruljac, Petra"]
[Result "1/2-1/2"]
[ECO "A84"]
[WhiteElo "2035"]
[BlackElo "2069"]
[Annotator "NA"]
[PlyCount "103"]
[EventDate "2018.09.08"]
[EventType "team-tourn"]
[EventCountry "CRO"]
[SourceTitle "playchess.com"]
[Source "ChessBase"]
[SourceQuality "1"]
[TimeControl "40/5400+30:1800+30"]

1. d4 {[%emt 0:00:30]} b6 {[%emt 0:04:30]} 2. Nf3 {[%emt 0:00:30]} Bb7 {[%emt 0:00:30]} 3. g3 {[%emt 0:00:30]} e6 {[%emt 0:00:30]} 4. Bg2 {[%emt 0:00:30]} f5 {[%emt 0:00:30]} 5. O-O {[%emt 0:00:30]} Nf6 {[%emt 0:00:30]} 6. c4 {[%emt 0:04:30]} Bd6 {[%emt 0:01:30]} 7. Nc3 {[%emt 0:07:30]} O-O {[%emt 0:08:30]} 8. Re1 {[%emt 0:04:30]} Ne4 {[%emt 0:04:30]} 9. Qc2 {[%emt 0:09:30]} Nxc3 {[%emt 0:20:30]} 10. Qxc3 {[%emt 0:00:30]} Be7 {[%emt 0:04:30]} 11. Bd2 {[%emt 0:07:30]} Na6 {[%emt 0:03:30]} 12. a3 {[%emt 0:01:30]} c5 {[%emt 0:00:30]} 13. e3 {[%emt 0:03:30]} Rc8 {[%emt 0:02:30]} 14. Rad1 {[%emt 0:02:30]} Qc7 {[%emt 0:01:30]} 15. Bc1 {[%emt 0:05:30]} Bf6 {[%emt 0:04:30]} 16. b3 {[%emt 0:03:30]} g5 {[%emt 0:06:30]} 17. Re2 {[%emt 0:08:30]} h5 {[%emt 0:08:30]} 18. Qd2 {[%emt 0:03:30]} h4 {[%emt 0:06:06]} 19. e4 {[%emt 0:03:30]} h3 {[%emt 0:08:29]} 20. e5 {[%emt 0:06:30]} Bg7 {[%emt 0:02:30]} 21. Bh1 {[%emt 0:00:30]} g4 {[%emt 0:01:31]} 22. Ne1 {[%emt 0:01:30]} Bxh1 {[%emt 0:01:49]} 23. Kxh1 {[%emt 0:00:30]} cxd4 {[%emt 0:01:14]} 24. Qxd4 {[%emt 0:01:30]} Nc5 {[%emt 0:00:19]} 25. Qe3 {[%emt 0:02:30]} Ne4 {[%emt 0:00:57]} 26. f3 {[%emt 0:00:30]} gxf3 {[%emt 0:02:06]} 27. Nxf3 {[%emt 0:00:30]} Rf7 {[%emt 0:00:28]} 28. Bb2 {[%emt 0:03:09]} Bf8 {[%emt 0:00:21]} 29. Qd3 {[%emt 0:05:39]} Qb7 {[%emt 0:00:15]} 30. Kg1 {[%emt 0:01:30]} Rg7 {[%emt 0:00:13]} 31. Rf1 {[%emt 0:05:37]} Bc5+ {[%emt 0:00:35]} 32. Bd4 {[%emt 0:00:02]} Bxa3 {[%emt 0:00:10]} 33. Nh4 {[%emt 0:00:52]} Bc5 {[%emt 0:03:33]} 34. Rf4 {[%emt 0:01:22]} Rf8 {[%emt 0:01:32]} 35. Bxc5 {[%emt 0:01:54]} bxc5 {[%emt 0:00:15]} 36. Qf3 {[%emt 0:00:16]} Qc8 {[%emt 0:01:04]} 37. Qh5 {[%emt 0:00:48]} Rh7 {[%emt 0:00:43]} 38. Qf3 {[%emt 0:01:42]} Qe8 {[%emt 0:00:40]} 39. Qf1 {[%emt 0:00:18]} Qh5 {[%emt 0:00:26]} 40. Rexe4 {[%emt 0:00:00]} Rg7 {[%emt 0:00:00]} 41. Re2 {[%emt 0:03:51]} Rg4 {[%emt 0:05:44]} 42. Ref2 {[%emt 0:00:30]} Qxh4 {[%emt 0:00:30]} 43. Rxg4+ {[%emt 0:00:30]} Qxg4 {[%emt 0:00:30]} 44. Rf4 {[%emt 0:00:30]} Qg7 {[%emt 0:00:30]} 45. Qe2 {[%emt 0:03:30]} Rb8 {[%emt 0:01:30]} 46. Qe3 {[%emt 0:00:30]} a5 {[%emt 0:03:30]} 47. Qxc5 {[%emt 0:01:30]} Rxb3 {[%emt 0:05:41]} 48. Qc8+ {[%emt 0:00:30]} Qf8 {[%emt 0:00:09]} 49. Qxd7 {[%emt 0:03:30]} Rb1+ {[%emt 0:00:42]} 50. Kf2 {[%emt 0:00:30]} Qc5+ {[%emt 0:04:37]} 51. Rd4 {[%emt 0:04:30]} Qb6 {[%emt 0:07:02]} 52. Qe8+ {[%emt 0:00:30]} 1/2-1/2

[Event "27th CRO-chT Women 2018"]
[Site "Biograd"]
[Date "2018.09.12"]
[Round "5.3"]
[White "Radikovic, Anamarija"]
[Black "Kuhar, Larisa"]
[Result "1/2-1/2"]
[ECO "B55"]
[WhiteElo "1906"]
[BlackElo "1912"]
[Annotator "NA"]
[PlyCount "35"]
[EventDate "2018.09.08"]
[EventType "team-tourn"]
[EventCountry "CRO"]
[SourceTitle "playchess.com"]
[Source "ChessBase"]
[SourceQuality "1"]
[TimeControl "40/5400+30:1800+30"]

1. e4 {[%emt 0:00:30]} c5 {[%emt 0:00:30]} 2. Nf3 {[%emt 0:00:00]} d6 {[%emt 0:00:00]} 3. d4 {[%emt 0:00:00]} cxd4 {[%emt 0:00:00]} 4. Nxd4 {[%emt 0:00:00]} Nf6 {[%emt 0:00:30]} 5. Qd3 {[%emt 0:01:00]} e6 {[%emt 0:02:30]} 6. c4 {[%emt 0:00:00]} b6 {[%emt 0:05:30]} 7. Nc3 {[%emt 0:00:00]} Bb7 {[%emt 0:00:30]} 8. Be2 {[%emt 0:01:30]} Nbd7 {[%emt 0:00:30]} 9. f3 {[%emt 0:06:30]} a6 {[%emt 0:02:30]} 10. O-O {[%emt 0:01:30]} Rc8 {[%emt 0:00:30]} 11. b3 {[%emt 0:05:30]} Ne5 {[%emt 0:08:30]} 12. Qe3 {[%emt 0:19:30]} Qc7 {[%emt 0:02:30]} 13. Bb2 {[%emt 0:09:30]} Be7 {[%emt 0:07:30]} 14. Kh1 {[%emt 0:11:30]} h5 {[%emt 0:08:30]} 15. Rac1 {[%emt 0:04:30]} Qb8 {[%emt 0:04:30]} 16. Na4 {[%emt 0:02:30]} Bd8 {[%emt 0:07:30]} 17. Rfd1 {[%emt 0:04:30]} Bc7 {[%emt 0:02:30]} 18. Nc2 {[%emt 0:10:30]} 1/2-1/2

[Event "27th CRO-chT Women 2018"]
[Site "Biograd"]
[Date "2018.09.11"]
[Round "5.4"]
[White "Turk, Vesna"]
[Black "Koksa, Jelena"]
[Result "0-1"]
[ECO "D03"]
[WhiteElo "1728"]
[BlackElo "1764"]
[Annotator "NA"]
[PlyCount "109"]
[EventDate "2018.09.08"]
[EventType "team-tourn"]
[EventCountry "CRO"]
[SourceTitle "playchess.com"]
[Source "ChessBase"]
[SourceQuality "1"]
[TimeControl "40/5400+30:1800+30"]

1. d4 {[%emt 0:00:30]} d5 {[%emt 0:00:30]} 2. Nf3 {[%emt 0:00:00]} Nf6 {[%emt 0:00:30]} 3. Bg5 {[%emt 0:00:00]} Ne4 {[%emt 0:01:30]} 4. Bf4 {[%emt 0:00:30]} c6 {[%emt 0:01:30]} 5. c3 {[%emt 0:03:30]} Qb6 {[%emt 0:03:30]} 6. b3 {[%emt 0:03:30]} Bf5 {[%emt 0:01:30]} 7. Nfd2 {[%emt 0:00:30]} e6 {[%emt 0:03:30]} 8. Nxe4 {[%emt 0:00:30]} Bxe4 {[%emt 0:00:30]} 9. Nd2 {[%emt 0:00:30]} Bg6 {[%emt 0:00:30]} 10. Nf3 {[%emt 0:01:30]} Nd7 {[%emt 0:03:30]} 11. e3 {[%emt 0:00:30]} Nf6 {[%emt 0:01:30]} 12. Ne5 {[%emt 0:02:30]} Qa5 {[%emt 0:03:30]} 13. b4 {[%emt 0:05:30]} Qb6 {[%emt 0:06:30]} 14. Nxg6 {[%emt 0:01:30]} hxg6 {[%emt 0:00:00]} 15. h3 {[%emt 0:01:30]} Ne4 {[%emt 0:01:00]} 16. Qb3 {[%emt 0:11:30]} Nxc3 {[%emt 0:01:30]} 17. a3 {[%emt 0:00:30]} Ne4 {[%emt 0:00:30]} 18. Bd3 {[%emt 0:00:30]} Nf6 {[%emt 0:05:30]} 19. O-O {[%emt 0:00:30]} Qd8 {[%emt 0:13:30]} 20. b5 {[%emt 0:03:30]} c5 {[%emt 0:01:30]} 21. dxc5 {[%emt 0:04:30]} Bxc5 {[%emt 0:00:00]} 22. Rac1 {[%emt 0:03:30]} Bd6 {[%emt 0:03:00]} 23. b6 {[%emt 0:20:30]} O-O {[%emt 0:05:30]} 24. Bxd6 {[%emt 0:05:30]} Qxd6 {[%emt 0:00:30]} 25. bxa7 {[%emt 0:04:30]} Rxa7 {[%emt 0:00:00]} 26. a4 {[%emt 0:00:30]} Nd7 {[%emt 0:02:00]} 27. Qc2 {[%emt 0:01:30]} b6 {[%emt 0:00:30]} 28. Qc6 {[%emt 0:06:00]} Qxc6 {[%emt 0:01:30]} 29. Rxc6 {[%emt 0:00:03]} Ne5 {[%emt 0:02:30]} 30. Rc3 {[%emt 0:04:50]} Nxd3 {[%emt 0:00:30]} 31. Rxd3 {[%emt 0:00:03]} Rxa4 {[%emt 0:00:30]} 32. Rb1 {[%emt 0:00:19]} Rb8 {[%emt 0:00:30]} 33. Rdb3 {[%emt 0:00:37]} Ra6 {[%emt 0:00:30]} 34. Kf1 {[%emt 0:00:33]} Kf8 {[%emt 0:00:30]} 35. Ke2 {[%emt 0:00:52]} Ke7 {[%emt 0:00:30]} 36. R1b2 {[%emt 0:03:01]} Kd6 {[%emt 0:01:30]} 37. Rc2 {[%emt 0:00:25]} b5 {[%emt 0:00:30]} 38. g4 {[%emt 0:04:02]} Rc6 {[%emt 0:02:30]} 39. Rd2 {[%emt 0:01:22]} b4 {[%emt 0:01:30]} 40. e4 {[%emt 0:00:00]} Rc3 {[%emt 0:00:00]} 41. Rdb2 {[%emt 0:04:53]} Rxb3 {[%emt 0:04:00]} 42. Rxb3 {[%emt 0:00:30]} dxe4 {[%emt 0:00:30]} 43. Kd2 {[%emt 0:00:30]} Kd5 {[%emt 0:01:30]} 44. Kc2 {[%emt 0:02:30]} f5 {[%emt 0:03:30]} 45. Re3 {[%emt 0:02:30]} Kd4 {[%emt 0:01:30]} 46. Kb3 {[%emt 0:00:30]} f4 {[%emt 0:00:30]} 47. Re1 {[%emt 0:00:30]} Kd3 {[%emt 0:01:30]} 48. Rd1+ {[%emt 0:00:30]} Ke2 {[%emt 0:00:30]} 49. Rd4 {[%emt 0:00:30]} e3 {[%emt 0:00:30]} 50. fxe3 {[%emt 0:00:30]} Kxe3 {[%emt 0:00:30]} 51. Rd7 {[%emt 0:01:30]} e5 {[%emt 0:01:30]} 52. Rxg7 {[%emt 0:00:30]} f3 {[%emt 0:00:30]} 53. Rxg6 {[%emt 0:01:30]} f2 {[%emt 0:00:30]} 54. Rf6 {[%emt 0:00:00]} Ke2 {[%emt 0:00:30]} 55. g5 {[%emt 0:00:00]} 0-1

[Event "27th CRO-chT Women 2018"]
[Site "Biograd"]
[Date "2018.09.12"]
[Round "5.5"]
[White "Nikolova, Adriana"]
[Black "Kejzar, Petra"]
[Result "1-0"]
[ECO "B22"]
[WhiteElo "2281"]
[BlackElo "2067"]
[Annotator "ChessBase"]
[PlyCount "71"]
[EventDate "2018.09.08"]
[EventType "team-tourn"]
[EventCountry "CRO"]
[SourceTitle "playchess.com"]
[Source "ChessBase"]
[SourceQuality "1"]
[TimeControl "40/5400+30:1800+30"]

1. e4 {[%emt 0:00:30]} c5 {[%emt 0:03:30]} 2. Nf3 {[%emt 0:00:30]} e6 {[%emt 0:00:30]} 3. c3 {[%emt 0:00:30]} Nf6 {[%emt 0:00:30]} 4. e5 {[%emt 0:00:00]} Nd5 {[%emt 0:00:00]} 5. d4 {[%emt 0:00:00]} cxd4 {[%emt 0:00:00]} 6. cxd4 {[%emt 0:00:00]} d6 {[%emt 0:00:00]} 7. Bc4 {[%emt 0:00:00]} Be7 {[%emt 0:00:00]} 8. O-O {[%emt 0:00:00]} O-O {[%emt 0:00:30]} 9. Qe2 {[%emt 0:00:00]} b6 {[%emt 0:00:30]} 10. Nbd2 {[%emt 0:02:30]} Bb7 {[%emt 0:01:30]} 11. Ne4 {[%emt 0:00:30]} dxe5 {[%emt 0:00:30]} 12. dxe5 {[%emt 0:00:30]} Nd7 {[%emt 0:03:30]} 13. a3 {[%emt 0:04:30]} Rc8 {[%emt 0:01:30]} 14. Bd3 {[%emt 0:02:30]} Qc7 {[%emt 0:10:30]} 15. Neg5 {[%emt 0:09:30]} h6 {[%emt 0:03:30]} 16. Nh3 {[%emt 0:11:30]} Nc5 {[%emt 0:02:30]} 17. Bc4 {[%emt 0:00:30]} Nd7 {[%emt 0:15:30]} 18. Bb5 {[%emt 0:08:30]} a6 {[%emt 0:01:30]} 19. Bd3 {[%emt 0:04:30]} Nc5 {[%emt 0:01:30]} 20. Bb1 {[%emt 0:02:30]} f5 {[%emt 0:13:30]} 21. exf6 {[%emt 0:01:30]} Rxf6 {[%emt 0:01:30]} 22. Qc2 {[%emt 0:01:30]} Bf8 {[%emt 0:14:30]} 23. b4 {[%emt 0:11:30]} Nd7 {[%emt 0:00:00]} 24. Qh7+ {[%emt 0:00:30]} Kf7 {[%emt 0:00:00]} 25. Nh4 {[%emt 0:00:30]} Qc3 {[%emt 0:04:30]} 26. Bg6+ {[%emt 0:01:30]} Ke7 {[%emt 0:00:30]} 27. Bxh6 {[%emt 0:00:00]} Kd6 {[%emt 0:03:15]} 28. Bg5 {[%emt 0:09:00]} Qe5 {[%emt 0:04:31]} 29. Rae1 {[%emt 0:01:30]} Qd4 {[%emt 0:00:53]} 30. Qg8 {[%emt 0:01:30]} Qg4 {[%emt 0:01:41]} 31. f3 {[%emt 0:07:30]} Qd4+ {[%emt 0:00:15]} 32. Kh1 {[%emt 0:00:30]} Be7 {[%emt 0:07:13]} 33. Qxg7 {[%emt 0:00:55]} Rc3 {[%emt 0:01:49]} 34. Rd1 {[%emt 0:01:34]} Qe5 {[%emt 0:01:14]} 35. Rfe1 {[%emt 0:01:39]} Bf8 {[%emt 0:01:39]} 36. Qh7 {[%emt 0:15:50]} 1-0

[Event "27th CRO-chT Women 2018"]
[Site "Biograd"]
[Date "2018.09.12"]
[Round "5.6"]
[White "Sulc, Gordana"]
[Black "Berke, Ana"]
[Result "0-1"]
[ECO "B56"]
[WhiteElo "1866"]
[BlackElo "2170"]
[Annotator "ChessBase"]
[PlyCount "72"]
[EventDate "2018.09.08"]
[EventType "team-tourn"]
[EventCountry "CRO"]
[SourceTitle "playchess.com"]
[Source "ChessBase"]
[SourceQuality "1"]
[TimeControl "40/5400+30:1800+30"]

1. e4 {[%emt 0:00:30]} c5 {[%emt 0:04:30]} 2. Nf3 {[%emt 0:00:00]} d6 {[%emt 0:00:00]} 3. d4 {[%emt 0:00:00]} cxd4 {[%emt 0:00:00]} 4. Nxd4 {[%emt 0:00:00]} Nf6 {[%emt 0:00:00]} 5. Nc3 {[%emt 0:00:00]} Nc6 {[%emt 0:00:00]} 6. f3 {[%emt 0:07:30]} e5 {[%emt 0:00:30]} 7. Nb3 {[%emt 0:01:30]} Be7 {[%emt 0:00:00]} 8. Bc4 {[%emt 0:08:30]} O-O {[%emt 0:00:00]} 9. Be3 {[%emt 0:00:30]} Be6 {[%emt 0:01:30]} 10. Nd5 {[%emt 0:01:30]} Rc8 {[%emt 0:01:30]} 11. Qd2 {[%emt 0:07:30]} Nd4 {[%emt 0:11:30]} 12. Nxe7+ {[%emt 0:02:30]} Qxe7 {[%emt 0:00:00]} 13. Bxd4 {[%emt 0:04:30]} Rxc4 {[%emt 0:04:00]} 14. Be3 {[%emt 0:13:30]} d5 {[%emt 0:02:30]} 15. exd5 {[%emt 0:02:30]} Nxd5 {[%emt 0:01:30]} 16. c3 {[%emt 0:05:30]} Rd8 {[%emt 0:08:30]} 17. Rd1 {[%emt 0:02:30]} Rcc8 {[%emt 0:01:30]} 18. Qf2 {[%emt 0:04:30]} Nxe3 {[%emt 0:01:30]} 19. Rxd8+ {[%emt 0:00:30]} Rxd8 {[%emt 0:01:30]} 20. Qxe3 {[%emt 0:00:00]} Bc4 {[%emt 0:04:30]} 21. Na5 {[%emt 0:07:00]} Ba6 {[%emt 0:02:30]} 22. Qxa7 {[%emt 0:03:30]} h6 {[%emt 0:04:30]} 23. Nb3 {[%emt 0:07:30]} Qh4+ {[%emt 0:01:30]} 24. Qf2 {[%emt 0:00:32]} Qa4 {[%emt 0:00:30]} 25. Qb6 {[%emt 0:06:14]} Re8 {[%emt 0:00:30]} 26. Kf2 {[%emt 0:03:12]} Qh4+ {[%emt 0:06:30]} 27. g3 {[%emt 0:01:09]} Qh3 {[%emt 0:00:30]} 28. Nc5 {[%emt 0:02:54]} Bc4 {[%emt 0:16:30]} 29. Qxb7 {[%emt 0:01:23]} f5 {[%emt 0:01:30]} 30. Qd7 {[%emt 0:02:17]} Bf7 {[%emt 0:03:30]} 31. a4 {[%emt 0:00:59]} h5 {[%emt 0:02:30]} 32. b4 {[%emt 0:00:57]} h4 {[%emt 0:00:30]} 33. g4 {[%emt 0:00:24]} e4 {[%emt 0:01:00]} 34. fxe4 {[%emt 0:03:21]} fxe4 {[%emt 0:00:54]} 35. Qf5 {[%emt 0:01:32]} e3+ {[%emt 0:00:59]} 36. Ke1 {[%emt 0:00:15]} Qg2 {[%emt 0:00:58]} 0-1

[Event "27th CRO-chT Women 2018"]
[Site "Biograd"]
[Date "2018.09.12"]
[Round "5.7"]
[White "Bogdanic, Katarina"]
[Black "Mican, Karmela"]
[Result "1/2-1/2"]
[ECO "A29"]
[WhiteElo "1921"]
[BlackElo "1890"]
[Annotator "NA"]
[PlyCount "64"]
[EventDate "2018.09.08"]
[EventType "team-tourn"]
[EventCountry "CRO"]
[SourceTitle "playchess.com"]
[Source "ChessBase"]
[SourceQuality "1"]
[TimeControl "40/5400+30:1800+30"]

1. c4 {[%emt 0:00:30]} e5 {[%emt 0:00:30]} 2. g3 {[%emt 0:00:00]} Nf6 {[%emt 0:00:30]} 3. Bg2 {[%emt 0:00:00]} d5 {[%emt 0:00:30]} 4. cxd5 {[%emt 0:00:00]} Nxd5 {[%emt 0:00:30]} 5. Nc3 {[%emt 0:00:00]} Nb6 {[%emt 0:00:30]} 6. Nf3 {[%emt 0:00:30]} Nc6 {[%emt 0:00:00]} 7. d3 {[%emt 0:00:30]} Be7 {[%emt 0:00:00]} 8. O-O {[%emt 0:00:30]} O-O {[%emt 0:01:30]} 9. Be3 {[%emt 0:02:30]} Be6 {[%emt 0:03:30]} 10. Rc1 {[%emt 0:04:30]} f5 {[%emt 0:02:30]} 11. Na4 {[%emt 0:03:30]} Nd5 {[%emt 0:10:30]} 12. Bc5 {[%emt 0:01:30]} Bd6 {[%emt 0:09:30]} 13. a3 {[%emt 0:13:30]} Kh8 {[%emt 0:04:30]} 14. b4 {[%emt 0:02:30]} a6 {[%emt 0:00:30]} 15. Qd2 {[%emt 0:01:30]} h6 {[%emt 0:02:30]} 16. Nh4 {[%emt 0:01:30]} Nce7 {[%emt 0:14:30]} 17. Bxd6 {[%emt 0:01:30]} cxd6 {[%emt 0:02:30]} 18. e4 {[%emt 0:01:30]} Nb6 {[%emt 0:05:30]} 19. exf5 {[%emt 0:06:30]} Bxf5 {[%emt 0:00:00]} 20. Nc3 {[%emt 0:00:30]} Rb8 {[%emt 0:05:00]} 21. a4 {[%emt 0:04:30]} Bh7 {[%emt 0:03:30]} 22. a5 {[%emt 0:00:30]} Nbc8 {[%emt 0:00:30]} 23. Be4 {[%emt 0:12:30]} Nc6 {[%emt 0:02:30]} 24. Ne2 {[%emt 0:01:30]} d5 {[%emt 0:04:30]} 25. Bxh7 {[%emt 0:00:30]} Kxh7 {[%emt 0:00:00]} 26. Qe3 {[%emt 0:18:30]} Nd6 {[%emt 0:02:00]} 27. Qc5 {[%emt 0:07:12]} Nf5 {[%emt 0:02:30]} 28. Nxf5 {[%emt 0:01:00]} Rxf5 {[%emt 0:00:30]} 29. f4 {[%emt 0:01:27]} Qf8 {[%emt 0:04:07]} 30. fxe5 {[%emt 0:03:12]} Nxe5 {[%emt 0:01:42]} 31. Nf4 {[%emt 0:01:23]} Qxc5+ {[%emt 0:08:06]} 32. Rxc5 {[%emt 0:00:10]} g5 {[%emt 0:00:34]} 1/2-1/2